Cogmind - Beta 15 @@@ ROGUE MODE // 2025.05.25 @ 10:48:17 Player: Epsilon 11 Result: Destroyed by Executioner with Helical Railgun Performance ------------- Evolutions (5) 2500 Regions Visited (23) 4600 Robots Destroyed (290) 1450 Value Destroyed (14324) 14324 Prototype IDs (89) 1780 Alien Tech Used (0) 0 Bonus (5510) 5510 TOTAL SCORE: 30164 Bonus ------- High Alert Combat Kills 891 Follower Combat Kills 138 Entered Garrisons 600 Aligned with FarCom 300 Met Data Miner 300 Acquired ECA 300 Met Warlord at Base 500 MAIN.C Attacked Warlord 500 Warlord Defense Kills 2108 Friendly Fire -127 Cogmind --------- Core Integrity 0/1000 Matter 193/300 Energy 253/350 System Corruption 7% Temperature Cool (0) Movement Core (2850) Ox56 Location -5/Warlord Parts ------- > --- POWER (2) -------- Reinforced Quantum Reactor > --- PROPULSION (4) --- (None) > --- UTILITY (8) ------ Cargo Storage Unit > --- WEAPON (3) ------- (None) > --- INVENTORY (30) --- Reinforced Quantum Reactor Experimental Cooling System Matter Compressor (250) Advanced Gravity Neutralizer Experimental Armor Integrity Analyzer Advanced Weapon Cycler Advanced Point Defense System Advanced Hacking Suite Improved System Shield Minesniffer Drone Bay Chronowheel Vortex Rifle Vortex Rifle Compact Tesla Bomb Launcher Improved Plasma Cutter CPS Tube (2) Vortex Lance Peak State ------------ > --- POWER ------------ Vortex Chain Reactor > --- PROPULSION ------- Enhanced Biometal Leg Wheel Armored Huge Wheel > --- UTILITY ---------- Cargo Storage Unit Machine Analyzer Experimental Targeting Computer Advanced Recoil Stabilizer Layered Medium Armor Plating Improved Hardlight Generator Long-range Tractor Beam > --- WEAPON ----------- Compact Mass Driver Compact Mass Driver Improved Remote Datajack > --- INVENTORY -------- Light Fission Core Light Quantum Reactor Reinforced Quantum Reactor Reinforced Quantum Reactor Experimental Cooling System Matter Compressor Advanced Gravity Neutralizer Core Analyzer Experimental Armor Integrity Analyzer Improved Kinecellerator Advanced Weapon Cycler Graphene Brace Advanced Remote Force Field Advanced Point Defense System Advanced Hacking Suite Improved System Shield Chronowheel Heavy Tesla Rifle Heavy Tesla Rifle Compact Tesla Bomb Launcher Guided Missile Launcher Improved Plasma Cutter CPS Tube RU-N14's Throwing Claymores v3 RU-N14's Throwing Claymores v3 RU-N14's Throwing Claymores v3 RU-N14's Throwing Claymores v3 RU-N14's Throwing Claymores v3 Lance [Rating: 117] Favorites ----------- Power Reinforced Quantum Reactor Engine Cooled Ion Engine Power Core Neutrino Core Reactor Reinforced Quantum Reactor Propulsion Armored Wheel Leg Enhanced Biometal Leg Wheel Armored Wheel Flight Unit Improved Flight Unit Utility Cargo Storage Unit Device Advanced Heat Sink Storage Cargo Storage Unit Processor Machine Analyzer Protection Improved Medium Armor Plating Weapon Lightning Gun Energy Gun Lightning Gun Energy Cannon Light EM Pulse Cannon Ballistic Gun Heavy Assault Rifle Ballistic Cannon Compact Mass Driver Launcher Advanced EMP Blaster Special Weapon Improved Remote Datajack Impact Weapon Great Maul Piercing Weapon Makeshift Spear Special Melee Weapon Datajack Build | -11 -10 -9 -9 -9 -8 -8 -8 -8 -8 -8 -6 -6 -6 -6 -6 -6 -5 -5 -5 -5 -5 -5 -5 ------- Run | Yrd Mat Mat Min Exi Min Mat Sto Gar Rec Scr Fac Gar Fac Low Low Dat Pro Fac Gar Fac Upp Upp War Slots Evolved 10 | . . 2 . . . 2 . . . . 4 . . . . . . 2 . . . . . Power 1 | . . . . . . . . . . . 1 . . . . . . . . . . . . Propulsion 2 | . . . . . . . . . . . 1 . . . . . . 1 . . . . . Utility 6 | . . 1 . . . 2 . . . . 2 . . . . . . 1 . . . . . Weapon 1 | . . 1 . . . . . . . . . . . . . . . . . . . . . Parts Attached 151 | 6 8 14 5 1 5 16 14 5 1 1 14 14 4 3 . . 2 15 7 5 1 . 10 Power 14 | 1 1 3 . . . 1 1 . . . 1 1 1 . . . 2 . . . . . 2 Engine 8 | 1 1 3 . . . 1 1 . . . . . 1 . . . . . . . . . . Core 2 | . . . . . . . . . . . 1 . . . . . 1 . . . . . . Reactor 4 | . . . . . . . . . . . . 1 . . . . 1 . . . . . 2 Propulsion 32 | 2 2 2 1 . 1 4 2 1 . 1 2 5 . . . . . 5 1 1 1 . 1 Treads . | . . . . . . . . . . . . . . . . . . . . . . . . Leg 1 | . . . . . . . . . . . . . . . . . . . . . . . 1 Wheel 30 | 2 2 1 1 . 1 4 2 1 . 1 2 5 . . . . . 5 1 1 1 . . Hover . | . . . . . . . . . . . . . . . . . . . . . . . . Flight 1 | . . 1 . . . . . . . . . . . . . . . . . . . . . Utility 48 | 1 2 6 1 . . 6 . . . . 5 6 2 2 . . . 5 3 4 . . 5 Device 25 | . 1 1 1 . . 3 . . . . 3 5 2 1 . . . 3 . 3 . . 2 Storage 3 | 1 . 2 . . . . . . . . . . . . . . . . . . . . . Processor 4 | . . . . . . 1 . . . . . . . . . . . 1 . . . . 2 Hackware . | . . . . . . . . . . . . . . . . . . . . . . . . Protection 16 | . 1 3 . . . 2 . . . . 2 1 . 1 . . . 1 3 1 . . 1 Artifact . | . . . . . . . . . . . . . . . . . . . . . . . . Weapon 57 | 2 3 3 3 1 4 5 11 4 1 . 6 2 1 1 . . . 5 3 . . . 2 Energy Gun 18 | 1 2 1 2 . 1 2 3 2 1 . 1 . . . . . . 1 1 . . . . Energy Cannon 4 | . . 1 1 . . 1 . 1 . . . . . . . . . . . . . . . Ballistic Gun 8 | 1 . 1 . . 2 . 3 . . . . . . . . . . 1 . . . . . Ballistic Cannon 10 | . 1 . . . . 2 . . . . 4 . . 1 . . . 2 . . . . . Launcher 5 | . . . . . 1 . 3 . . . . . . . . . . 1 . . . . . Special Weapon 5 | . . . . . . . . 1 . . . 1 . . . . . . 1 . . . 2 Impact Weapon 3 | . . . . . . . 2 . . . . . 1 . . . . . . . . . . Slashing Weapon . | . . . . . . . . . . . . . . . . . . . . . . . . Piercing Weapon 2 | . . . . . . . . . . . . 1 . . . . . . 1 . . . . Special Melee Weapon 2 | . . . . 1 . . . . . . 1 . . . . . . . . . . . . Unidentified Prototypes 22 | . . 3 . . . 2 7 . . . . 1 . . . . . 5 . . . . 4 Corrupted Parts 1 | . . . . . . . . . . . . . . . . . 1 . . . . . . System Corruption 9 | . . . . . . . . . . . . . . . . . 9 . . . . . . Parts Lost 63 | . 4 3 4 . 4 1 1 1 . . 3 9 . 3 . . 1 6 1 3 3 . 16 Power 6 | . . . . . . . . . . . . 2 . . . . 1 1 . . . . 2 Propulsion 18 | . 2 1 1 . 1 . 1 1 . . 1 2 . . . . . 2 1 2 1 . 2 Utility 21 | . . 1 . . . 1 . . . . 1 4 . 1 . . . 3 . 1 1 . 8 Weapon 18 | . 2 1 3 . 3 . . . . . 1 1 . 2 . . . . . . 1 . 4 Highest Loss Streak 13 | . 4 1 3 . 2 1 1 1 . . 3 3 . 2 . . 1 3 1 1 3 . 13 To Critical Strikes . | . . . . . . . . . . . . . . . . . . . . . . . . Average Backups 26 | . 3 18 26 29 28 29 29 28 28 29 27 26 26 26 27 27 27 27 28 27 26 23 26 Power 4 | . . 2 6 7 8 7 5 4 4 3 2 3 4 4 4 4 4 3 3 3 4 3 3 Propulsion 1 | . . . . 1 . 2 1 . . . 1 1 2 2 2 2 2 2 1 1 . . . Utility 10 | . 1 4 7 7 7 6 8 11 12 13 11 11 11 11 12 12 12 12 12 12 11 11 12 Weapon 7 | . . 8 10 11 10 10 10 10 9 8 8 7 5 5 5 5 4 4 6 5 5 5 8 Tool/Special . | . . . . . . . . . . . . . . . . . . . . . . . . Unused Backups 38 | . . . . . . 2 3 4 . 2 . 2 . . . . . 1 1 1 . 1 21 Power 7 | . . . . . . 1 1 1 . 1 . . . . . . . . . . . 1 2 Propulsion . | . . . . . . . . . . . . . . . . . . . . . . . . Utility 18 | . . . . . . 1 . 2 . 1 . 2 . . . . . 1 1 1 . . 9 Weapon 10 | . . . . . . . 2 1 . . . . . . . . . . . . . . 7 Tool/Special 3 | . . . . . . . . . . . . . . . . . . . . . . . 3 Average Slot Usage (%) 85 | . 91 88 87 88 87 89 89 89 90 90 90 75 85 79 80 74 75 84 88 89 85 87 76 Engine 5 | . 14 11 11 11 11 9 9 9 9 9 6 1 5 6 6 6 4 . . . . . . Core 1 | . . . . . . . . . . . 6 . . . . . 1 1 5 5 5 5 1 Reactor 2 | . . . . . . . . . . . . 5 6 6 6 6 6 9 5 5 5 5 5 Wheel 19 | . 25 21 21 22 22 18 17 17 18 18 18 19 20 20 20 20 20 22 23 19 16 17 15 Device 10 | . 3 4 10 11 11 9 9 9 9 9 19 10 12 10 6 6 6 13 11 10 13 17 15 Storage 7 | . 14 11 11 11 11 9 9 9 9 9 6 6 6 6 6 6 6 5 5 4 5 5 5 Processor 7 | . . . . . . 8 9 9 9 9 6 6 6 6 6 6 6 8 11 11 11 11 10 Protection 7 | . 9 7 . . . 8 8 9 9 9 6 5 5 8 13 13 13 8 11 10 8 5 4 Energy Gun 10 | . 11 13 21 11 16 9 10 20 26 27 9 9 11 . . . . . 2 4 7 10 . Energy Cannon 1 | . . 8 11 11 4 . . 2 . . . . . . . . . . . . . . . Ballistic Gun 2 | . 6 11 . . 2 11 9 1 . . . . . . . . . . 1 2 . . . Ballistic Cannon 3 | . 5 . . . . 6 2 . . . 8 3 4 6 6 1 5 5 . 7 5 . 8 Special Weapon 1 | . . . . . . . . 2 . . . 3 1 5 6 6 . . 1 . 1 5 4 Peak Build Rating 117 | 6 9 20 20 22 24 37 40 42 42 43 68 80 72 77 76 76 78 89 86 96 96 93 117 Average Rating 56 | 4 6 16 19 20 22 30 37 39 41 42 61 64 69 75 76 61 72 85 80 91 92 91 97 On Entrance 52 | . 6 9 20 20 22 22 37 39 40 42 43 68 58 72 76 76 76 78 86 86 96 92 93 Naked Turns . | . . . . . . . . . . . . . . . . . . . . . . . . Heaviest Build 258 | 13 18 161 161 159 160 174 174 167 169 169 207 232 229 252 252 252 258 256 255 227 219 218 218 Greatest Support 60 | 20 32 32 26 26 26 26 26 26 26 28 36 36 36 36 36 36 36 54 54 60 54 48 48 Greatest Overweight (x) 64 | 1 . 9 9 6 7 8 8 6 6 6 7 7 6 6 6 6 7 7 5 4 5 4 64 Average Overweight (x) 5 | . . 4 6 6 6 6 6 6 6 6 5 5 5 6 6 6 6 4 4 3 4 4 4 Largest Inventory Capacity 30 | 8 8 30 30 30 30 30 30 30 30 30 30 30 30 30 30 30 30 30 30 30 30 30 30 Average Capacity 29 | 7 8 28 30 30 30 30 30 30 30 30 30 30 30 30 30 30 30 30 30 29 30 30 30 Most Carried 30 | . 8 28 28 30 30 30 30 30 30 30 30 30 30 29 28 28 30 30 30 30 30 27 30 Average Carried 27 | . 3 18 26 29 28 29 29 29 29 29 28 28 28 27 27 28 28 29 29 28 26 24 27 Final Capacity 30 | 8 8 30 30 30 30 30 30 30 30 30 30 30 30 30 30 30 30 30 30 30 30 30 30 Final Carried 30 | . 8 28 28 30 27 30 30 30 30 30 30 30 28 28 28 28 30 30 30 28 25 24 17 Class Distribution -------------------- 39% | Hauler-Tank 36% | Hauler-Skirmisher 14% | Hauler-Mutant 5% | Hauler-Gunner Dominant Class ---------------- Mutant | -10/Materials Hauler-Tank | -9/Materials Hauler-Gunner | -9/Mines Hauler-Mutant | -9/Exiles Hauler-Skirmisher | -8/Mines Hauler-Skirmisher | -8/Materials Hauler-Skirmisher | -8/Storage Hauler-Skirmisher | -8/Garrison Hauler-Skirmisher | -8/Recycling Hauler-Tank | -8/Scraptown Hauler-Tank | -6/Factory Hauler-Skirmisher | -6/Garrison Hauler-Skirmisher | -6/Factory Hauler-Tank | -6/Lower Caves Hauler-Tank | -6/Lower Caves Hauler-Mutant | -6/Data Miner Hauler-Mutant | -5/Proximity Caves Hauler-Tank | -5/Factory Hauler-Tank | -5/Garrison Hauler-Tank | -5/Factory Hauler-Tank | -5/Upper Caves Hauler-Tank | -5/Upper Caves Hauler-Tank | -5/Warlord Resources | -11 -10 -9 -9 -9 -8 -8 -8 -8 -8 -8 -6 -6 -6 -6 -6 -6 -5 -5 -5 -5 -5 -5 -5 ----------- Run | Yrd Mat Mat Min Exi Min Mat Sto Gar Rec Scr Fac Gar Fac Low Low Dat Pro Fac Gar Fac Upp Upp War Matter Collected 7829 | 200 162 373 57 . 154 490 803 153 55 . 294 884 233 425 120 . 194 1234 181 1123 143 120 431 Remotely 1467 | . . . . . . . . . . . . . . . . . . . . 777 143 120 427 Salvage Created 11446 | . 238 1305 390 . 223 1327 1281 918 270 . 451 1784 160 238 88 . 247 1006 19 765 85 221 430 Parts 568 | . 16 89 14 . 25 76 78 37 15 . 22 60 6 11 2 . 15 39 . 42 7 4 10 Haulers Intercepted 5 | . . 2 . . . 1 2 . . . . . . . . . . . . . . . . Recyclers Shooed 7 | . . . . . . 2 1 . . . . . . . . . . . . 4 . . . Parts Field Recycled . | . . . . . . . . . . . . . . . . . . . . . . . . Retrieved Matter . | . . . . . . . . . . . . . . . . . . . . . . . . Parts Self-Destructed 15 | . . . . . . . . . . . . . . . 2 . 7 . . . 5 1 . Prevented 8 | . . . . . . . . . . . . . . . . . 4 . . . 1 3 . Kills | -11 -10 -9 -9 -9 -8 -8 -8 -8 -8 -8 -6 -6 -6 -6 -6 -6 -5 -5 -5 -5 -5 -5 -5 ------- Run | Yrd Mat Mat Min Exi Min Mat Sto Gar Rec Scr Fac Gar Fac Low Low Dat Pro Fac Gar Fac Upp Upp War Combat Hostiles Destroyed 235 | . 7 25 11 . 14 18 21 18 2 . 9 29 3 6 3 . 12 16 . 13 4 5 19 Guns 89 | . 2 17 8 . 1 12 11 12 2 . 2 13 1 1 . . . . . 1 1 3 2 Cannons 71 | . 5 8 3 . . 6 5 1 . . 5 4 1 5 3 . 1 11 . 8 . . 5 AOE 63 | . . . . . 11 . 5 3 . . . 9 . . . . 11 4 . 4 2 2 12 Classes Destroyed 22 | . 4 6 2 . . 5 . . . . 1 . 1 1 . . . . . . . . 2 Worker 18 | . . 5 1 . 1 4 3 . . . 1 . . . . . . . . 3 . . . Builder 8 | . 1 1 . . . 3 . . . . . . . . . . . 2 . 1 . . . Tunneler 2 | . . . . . . 1 . . . . 1 . . . . . . . . . . . . Hauler 5 | . . 2 . . . 1 2 . . . . . . . . . . . . . . . . Recycler 13 | . . . . . . 4 2 . 2 . . . . . . . . 3 . 2 . . . Mechanic 3 | . 1 . . . . 1 1 . . . . . . . . . . . . . . . . Operator 1 | . . 1 . . . . . . . . . . . . . . . . . . . . . Watcher 9 | . . 2 . . . 1 2 1 . . . . 1 . . . . 1 . 1 . . . Swarmer 70 | . 3 10 4 . 11 3 3 3 . . . 6 . . . . 12 1 . 4 4 1 5 Cutter 2 | . . . . . . . . . . . . . 2 . . . . . . . . . . Saboteur 1 | . . . . . . . . . . . . . . . . . . . . . . . 1 Grunt 80 | . 4 7 2 . 3 9 5 8 . . 5 16 . . 3 . . 5 . . . 4 9 Brawler 5 | . . 1 . . . . 1 1 . . . 2 . . . . . . . . . . . Duelist 5 | . . . 1 . . . 1 1 . . . 2 . . . . . . . . . . . Sentry 30 | . . 7 . . . 2 11 4 2 . 1 . 1 . . . . 1 . 1 . . . Specialist 2 | . . . . . . 2 . . . . . . . . . . . . . . . . . Hunter 4 | . . . . . . 1 . 1 . . . . . . . . . 2 . . . . . Programmer 21 | . . . . . . . . . . . 3 3 . . . . . 6 . 8 . . 1 Heavy 1 | . . . . . . 1 . . . . . . . . . . . . . . . . . Executioner 2 | . . . . . . . . . . . . . . . . . . . . . . . 2 Assembled 4 | . . . 4 . . . . . . . . . . . . . . . . . . . . Thug 4 | . . . . . . . . . . . . . . 4 . . . . . . . . . Savage 1 | . . . . . . . . . . . . . . . . . . . . . . . 1 Butcher 1 | . . . . . . . . . . . . . . 1 . . . . . . . . . Mutant 2 | . . . . . . . . . . . . . . 1 . . . 1 . . . . . Best Kill Streak 17 | . 8 6 4 . 4 5 7 4 2 . 4 8 2 3 3 . 5 3 . 4 3 3 17 Combat Bots Only 17 | . 7 5 4 . 4 4 7 4 1 . 3 8 2 3 3 . 5 3 . 4 3 3 17 Max Kills in Single Turn 5 | . 1 2 2 . 2 2 5 3 1 . 1 2 1 1 1 . 3 1 . 3 2 2 4 Gunslinging 1 | . . 1 . . . 1 . . . . . 1 . . . . . . . . . . . Exploded 5 | . . . . . 2 . 5 3 . . . 2 . . . . 3 1 . 3 2 2 4 Melee . | . . . . . . . . . . . . . . . . . . . . . . . . Uniques/NPCs Destroyed . | . . . . . . . . . . . . . . . . . . . . . . . . Combat | -11 -10 -9 -9 -9 -8 -8 -8 -8 -8 -8 -6 -6 -6 -6 -6 -6 -5 -5 -5 -5 -5 -5 -5 -------- Run | Yrd Mat Mat Min Exi Min Mat Sto Gar Rec Scr Fac Gar Fac Low Low Dat Pro Fac Gar Fac Upp Upp War Hostile Shots Fired 1116 | . 60 79 31 . 28 92 58 51 5 . 47 119 29 44 15 . 55 108 . 59 14 24 198 Missed 336 | . 19 25 4 . 11 28 17 15 1 . 21 35 13 10 5 . 25 24 . 18 5 3 57 Hits 780 | . 41 54 27 . 17 64 41 36 4 . 26 84 16 34 10 . 30 84 . 41 9 21 141 Melee 24 | . . . 5 . . . . . . . . 5 6 . . . . . . . . . 8 Projectile 756 | . 41 54 22 . 17 64 41 36 4 . 26 79 10 34 10 . 30 84 . 41 9 21 133 AOE 1 | . . . . . . . . . . . . . 1 . . . . . . . . . . Critical Strikes 45 | . . 1 . . . 2 2 3 1 . 2 6 3 7 . . . 3 . 3 1 4 7 Actively Blocked 8 | . . . . . . . . . . . . . 3 . . . . . . . . . 5 Part Disruptions 2 | . . . . . . . . . . . . . . . . . . 2 . . . . . Damage Taken 13544 | . 547 606 363 . 337 972 617 553 57 . 328 2065 193 637 190 . 405 1163 87 1119 129 271 2905 Core 1951 | . 146 51 67 . 131 171 54 127 . . 24 111 . . 20 . 29 99 . 143 18 13 747 Absorbed by Shields 624 | . . . . . . . . . . . 124 18 52 . . . . . . 12 6 126 286 Redirected to Shielding 85 | . 31 . . . . . . . . . . . . . . . . . . . . . 54 Ignored by Resistances 342 | . . . . . . . . . . . 27 . . . . . 118 197 . . . . . Regen/Repaired (Parts) 1846 | . . . . . . 93 407 . . . . . 295 . . . . 171 . 676 . . 204 Core Remaining (%) 58 | 100 41 . . . 37 . . . . 36 . . . . . . 78 . . . . . . Volleys Fired 743 | . 28 62 20 . 18 56 55 66 7 . 23 103 22 29 10 3 14 69 19 80 13 16 30 Largest 3 | . 2 3 3 . 3 3 3 3 3 . 3 3 3 3 1 1 2 2 1 3 3 2 2 Hottest 178 | . 60 124 146 . 135 143 147 173 165 . 165 165 164 164 70 7 106 140 70 178 175 140 140 Shots Fired 1472 | . 40 173 55 . 32 168 153 146 21 . 64 193 35 40 10 3 17 85 19 123 21 28 46 Gun 912 | . 25 123 36 . 22 124 121 119 21 . 31 146 22 11 . . . 9 13 54 17 14 4 Cannon 480 | . 15 50 19 . . 44 30 26 . . 33 39 13 27 10 . 3 68 . 65 . 10 28 Launcher 52 | . . . . . 10 . 2 1 . . . 8 . . . . 14 8 . 2 2 4 1 Special 28 | . . . . . . . . . . . . . . 2 . 3 . . 6 2 2 . 13 Kinetic 620 | . 27 62 7 . . 112 83 8 . . 33 39 13 27 10 . 3 68 1 87 2 10 28 Thermal 202 | . . . . . . 56 59 62 . . 16 9 . . . . . . . . . . . Explosive 42 | . . . . . 10 . 1 1 . . . 8 . . . . 3 3 . 2 2 4 8 Electromagnetic 587 | . 13 111 48 . 22 . 10 75 21 . 15 137 22 11 . . 11 14 12 32 15 14 4 Robot Hit Streak 21 | . 6 10 6 . 8 12 21 12 3 . 6 13 7 3 5 1 4 9 14 17 6 7 14 Robot Miss Streak 6 | . 3 4 4 . 3 3 3 4 4 . 5 6 1 4 2 2 2 5 . 4 4 2 3 Penetration Max 1 | . . . . . . 1 1 . . . . . . . . . . . . 1 . . . Secondary Targets 14 | . 2 2 . . 1 2 . 3 . . . 3 1 . . . . . . . . . . Max Gunslinging Chain 2 | . 1 2 . . 1 1 . 1 . . . 1 1 . . . . . . . . . . Shots Hit Robots 860 | . 30 106 28 4 22 99 105 74 11 . 37 128 15 16 7 1 5 40 6 64 12 18 32 Core Hits 458 | . 13 51 18 . 16 48 46 30 7 . 17 80 5 9 2 . 16 21 1 26 6 13 33 Critical Kills 3 | . . . . . . . . . . . 2 . . . . . . . . 1 . . . Critical Parts Destroyed 3 | . . . . . . . 1 . . . 1 . . . . . . . . 1 . . . Critical Strikes 44 | . 1 1 1 . . 4 7 3 . . 5 8 1 1 1 . 1 3 . 5 . . 2 Burn 6 | . . . . . . . 4 1 . . . 1 . . . . . . . . . . . Destroy 5 | . . . . . . . . . . . 3 . . . . . . . . 2 . . . Blast 18 | . . . . . . 4 2 . . . 1 1 1 1 1 . 1 3 . 3 . . . Corrupt 8 | . 1 1 1 . . . . 2 . . 1 2 . . . . . . . . . . . Smash 1 | . . . . . . . 1 . . . . . . . . . . . . . . . . Sever 2 | . . . . . . . . . . . . . . . . . . . . . . . 2 Impale 4 | . . . . . . . . . . . . 4 . . . . . . . . . . . Melee Attacks 68 | . . . . 4 . . 9 . . . 3 41 2 . . . . 5 1 3 . . . Impact 16 | . . . . . . . 9 . . . . . 2 . . . . 5 . . . . . Slashing . | . . . . . . . . . . . . . . . . . . . . . . . . Piercing 44 | . . . . . . . . . . . . 40 . . . . . . 1 3 . . . Sneak Attacks 9 | . . . . 4 . . 1 . . . 3 1 . . . . . . . . . . . Combat Hostiles 1 | . . . . . . . . . . . . 1 . . . . . . . . . . . Follow-up Attacks . | . . . . . . . . . . . . . . . . . . . . . . . . Damage Inflicted 30371 | . 492 1991 544 . 931 2048 2503 1672 226 . 1045 5349 390 899 550 . 851 3471 102 2754 416 901 3236 Guns 10266 | . 210 1154 311 . 275 1286 1578 1124 226 . 353 1430 328 73 . . . 129 . 1055 259 383 92 Cannons 11118 | . 212 749 233 . . 762 600 398 . . 692 891 46 826 550 . 77 2599 . 1322 . 249 912 Explosions 6594 | . 66 88 . . 656 . 242 150 . . . 1398 . . . . 774 548 . 316 157 269 1930 Melee 2010 | . . . . . . . 83 . . . . 1630 . . . . . 195 102 . . . . Ramming 81 | . 4 . . . . . . . . . . . 16 . . . . . . 61 . . . Kinetic 12061 | . 288 513 15 . . 1367 1192 41 . . 692 891 46 826 550 . 77 2599 . 1754 49 249 912 Thermal 2792 | . 66 88 . . . 681 941 479 . . 131 263 . . . . 115 28 . . . . . Explosive 5575 | . . . . . 656 . 122 117 . . . 1278 . . . . 369 361 . 316 157 269 1930 Electromagnetic 7550 | . 134 1390 529 . 275 . 165 1035 226 . 222 1287 328 73 . . 290 288 . 623 210 383 92 Impact 278 | . . . . . . . 83 . . . . . . . . . . 195 . . . . . Slashing 302 | . . . . . . . . . . . . . . . . . . . . . . . 302 Piercing 1732 | . . . . . . . . . . . . 1630 . . . . . . 102 . . . . Highest Corruption 13 | . . . . . . . . . . . . 2 2 3 3 3 13 3 . 3 . . 7 Average Corruption 2 | . . . . . . . . . . . . 1 2 2 3 3 3 1 . 1 . . 4 Corruption Purged 10 | . . . . . . . . . . . . . . . . . . 5 . 5 . . . Corruption Blocked . | . . . . . . . . . . . . . . . . . . . . . . . . Effects 85 | . . . . . . . . . . . . 40 12 11 8 4 5 2 . . . . 3 Message Errors 22 | . . . . . . . . . . . . 14 1 2 4 . 1 . . . . . . Matter Fused 17 | . . . . . . . . . . . . 10 2 2 2 1 . . . . . . . Heat Flow Errors 10 | . . . . . . . . . . . . 4 2 2 . . 1 1 . . . . . Energy Discharges 10 | . . . . . . . . . . . . 3 1 1 1 . 3 . . . . . 1 Parts Rejected 1 | . . . . . . . . . . . . . . 1 . . . . . . . . . Parts Fused 4 | . . . . . . . . . . . . 1 . 2 . . . . . . . . 1 Data Loss (minor) 11 | . . . . . . . . . . . . 4 1 1 1 2 . 1 . . . . 1 Data Loss (major) 3 | . . . . . . . . . . . . 2 1 . . . . . . . . . . Misfires 3 | . . . . . . . . . . . . 1 2 . . . . . . . . . . Alerts 2 | . . . . . . . . . . . . . 1 . . 1 . . . . . . . Weapon Failures 2 | . . . . . . . . . . . . 1 1 . . . . . . . . . . Overload Shots . | . . . . . . . . . . . . . . . . . . . . . . . . Overflow Damage 1529 | . 3 44 15 . 38 25 91 23 . . 2 148 . 82 123 . 68 643 . 156 8 . 60 Projectiles 1135 | . . 44 15 . . 25 . 5 . . 2 84 . 82 123 . . 637 . 75 . . 43 Explosions 243 | . 3 . . . 38 . 8 18 . . . 41 . . . . 68 . . 42 8 . 17 Melee 151 | . . . . . . . 83 . . . . 23 . . . . . 6 . 39 . . . Knockbacks 66 | . 5 . . . . 6 4 . . . 8 4 . 2 3 . . 14 . 6 . 7 7 Impact 4 | . . . . . . . 1 . . . . . . . . . . 2 . 1 . . . Kinetic 56 | . 5 . . . . 5 3 . . . 5 4 . 2 3 . . 11 . 5 . 6 7 Secondary 6 | . . . . . . 1 . . . . 3 . . . . . . 1 . . . 1 . Self-Inflicted Damage 468 | . 36 . . . 111 . . . . . . 104 8 . . . 165 14 . 30 . . . Shots 13 | . 1 . . . 3 . . . . . . 2 . . . . 6 1 . . . . . Rammed 3 | . 1 . . . . . . . . . . . 1 . . . . . . 1 . . . Targets Rammed 3 | . 1 . . . . . . . . . . . 1 . . . . . . 1 . . . Kicked . | . . . . . . . . . . . . . . . . . . . . . . . . Crushed . | . . . . . . . . . . . . . . . . . . . . . . . . Highest Temperature 580 | . 249 341 311 . 243 144 96 324 135 . 326 490 261 408 140 . 236 580 132 467 456 419 411 Average Temperature 117 | . 141 78 130 . 149 30 27 101 48 . 102 160 71 163 67 . 58 156 37 121 184 133 178 Received Heat Transfer 3113 | . 264 204 18 . 99 261 234 243 54 . 54 363 8 431 90 . . 258 . 36 . 140 356 Effects 57 | . . . 1 . . . . 1 . . . 11 . 2 . . . 16 . 12 5 7 2 Shutdowns 18 | . . . . . . . . . . . . 5 . . . . . 5 . 3 2 2 1 Energy Bleed 11 | . . . 1 . . . . 1 . . . 1 . . . . . 3 . 2 3 . . Interference 17 | . . . . . . . . . . . . 3 . . . . . 3 . 5 . 5 1 Matter Decay 4 | . . . . . . . . . . . . . . 1 . . . 1 . 2 . . . Short Circuit 2 | . . . . . . . . . . . . . . 1 . . . 1 . . . . . Damage (minor) 4 | . . . . . . . . . . . . 2 . . . . . 2 . . . . . Damage (major) 1 | . . . . . . . . . . . . . . . . . . 1 . . . . . Siege Activations . | . . . . . . . . . . . . . . . . . . . . . . . . Martial Activations . | . . . . . . . . . . . . . . . . . . . . . . . . Shielding Activations . | . . . . . . . . . . . . . . . . . . . . . . . . Robots Disrupted 3 | . . . . . . . . 1 . . . 2 . . . . . . . . . . . Combat Hostiles 3 | . . . . . . . . 1 . . . 2 . . . . . . . . . . . Robots Corrupted 15 | . . . . . 2 . 1 2 . . 2 3 1 . . . . 1 . 2 1 . . Combat Hostiles 12 | . . . . . 2 . . 2 . . 2 3 1 . . . . 1 . . 1 . . Parts Fried 46 | . . 5 2 . 4 . 1 7 . . 2 6 6 . . . . 3 . 9 . 1 . Impact Corruptions 7 | . . . . . . . 3 . . . . . . . . . . 3 . 1 . . . Robots Melted . | . . . . . . . . . . . . . . . . . . . . . . . . Combat Hostiles . | . . . . . . . . . . . . . . . . . . . . . . . . Parts Melted 6 | . . . . . 1 1 2 . . . 1 . . . . . . . . . . . 1 Heat Transferred 5397 | . 100 50 . . . 1480 1974 938 . . 222 433 . . . . 150 50 . . . . . Parts Sabotaged 9 | . . . . . . . . . . . . . . . . . . . . . . . 9 Parts Stolen . | . . . . . . . . . . . . . . . . . . . . . . . . Parts Stripped . | . . . . . . . . . . . . . . . . . . . . . . . . Power Chain Reactions 15 | . 1 2 . . . . 2 1 . . . 2 . . . . 5 2 . . . . . Alert | -11 -10 -9 -9 -9 -8 -8 -8 -8 -8 -8 -6 -6 -6 -6 -6 -6 -5 -5 -5 -5 -5 -5 -5 ------- Run | Yrd Mat Mat Min Exi Min Mat Sto Gar Rec Scr Fac Gar Fac Low Low Dat Pro Fac Gar Fac Upp Upp War Maximum Alert Level 5 | . . 2 1 . . . 1 4 2 . . 5 3 . . . . 3 3 2 . . . Low Security (%) 37 | 100 100 54 95 . 100 100 74 1 . . 100 14 . . . . . . . . . . . Level 1 20 | . . 39 4 . . . 25 16 . . . 20 . . . . . 16 . 64 . . . Level 2 25 | . . 5 . . . . . 40 100 . . 18 10 . . . . 63 67 35 . . . Level 3 10 | . . . . . . . . 23 . . . 12 89 . . . . 20 32 . . . . Level 4 5 | . . . . . . . . 17 . . . 28 . . . . . . . . . . . Level 5 . | . . . . . . . . . . . . 5 . . . . . . . . . . . High Security . | . . . . . . . . . . . . . . . . . . . . . . . . Max Security . | . . . . . . . . . . . . . . . . . . . . . . . . Peak Influence 1696 | . 120 409 240 . 186 165 286 1326 690 . 120 1696 890 . . . . 864 951 500 . . . Initial 890 | . . 20 150 . . 26 67 183 596 . . 69 890 . . . . 864 417 499 . . . Average 396 | . 45 177 56 . 98 48 147 707 577 . 22 774 791 . . . . 557 657 386 . . . Influence Increases 10624 | . 203 877 180 . 524 584 824 1163 358 . 342 1737 142 . 60 . 300 1372 544 744 105 155 410 Destroy 0b10 Robot/C 4560 | . 140 500 140 . 280 360 420 360 60 . 180 580 60 . 60 . 240 320 . 300 80 100 380 Destroy 0b10 Robot/NC 335 | . 10 55 10 . 5 75 50 5 10 . 10 30 5 . . . . 30 . 40 . . . Destroy Leader 816 | . 30 128 30 . 40 84 138 20 . . 50 70 22 . . . 30 72 . 82 10 10 . Allied During Kill 119 | . . . . . . . . 11 9 . 10 . . . . . . . . 89 . . . Successful Hack 410 | . 18 19 . . . 19 62 26 36 . 50 14 43 . . . . 52 14 57 . . . Select Force Hacks 240 | . . . . . . . . . 240 . . . . . . . . . . . . . . Disable Machine 450 | . . 60 . . 135 . 75 30 . . 30 60 . . . . . 30 . 30 . . . Anti-Garrison Action 1950 | . . . . . . . . 600 . . . 850 . . . . . . 500 . . . . Destroy Structure 619 | . 5 10 . . 64 31 34 66 3 . 12 88 12 . . . . 118 30 146 . . . Advance Influence 750 | . . . . . . . . . . . . . . . . . . 750 . . . . . Partial Spotted 15 | . . . . . . . 15 . . . . . . . . . . . . . . . . Lose Combat Pursuer 360 | . . 105 . . . 15 30 45 . . . 45 . . . . 30 . . . 15 45 30 Influence Decreases 10360 | . 154 541 565 . 456 491 703 119 1220 464 243 140 1168 634 96 . 117 959 189 1320 400 216 165 Entered New Map 3660 | . . 29 235 . . 42 94 99 730 464 . 30 806 248 8 . . 69 179 452 140 16 19 Time Decay 5603 | . 124 482 300 . 416 429 599 . 490 . 200 . 362 326 88 . 107 530 . 688 230 200 32 Search Patrol Dispatched 300 | . . . . . . . . . . . . . . . . . . 300 . . . . . Lost Part 557 | . 30 30 30 . 40 10 10 10 . . 23 90 . 30 . . 10 60 10 30 30 . 114 Lost Ally 240 | . . . . . . 10 . 10 . . 20 20 . 30 . . . . . 150 . . . Squads Dispatched 30 | . 1 1 . . . 4 3 . . . 3 . 3 . . . . 7 . 8 . . . Investigation 8 | . 1 1 . . . 1 . . . . 1 . 1 . . . . 2 . 1 . . . Extermination 11 | . . . . . . . . . . . 2 . 1 . . . . 3 . 5 . . . Reinforcement 8 | . . . . . . 3 . . . . . . 1 . . . . 2 . 2 . . . Assault . | . . . . . . . . . . . . . . . . . . . . . . . . Garrison 3 | . . . . . . . 3 . . . . . . . . . . . . . . . . Intercept . | . . . . . . . . . . . . . . . . . . . . . . . . Searches Triggered 2 | . . . . . . . . . . . . . . . . . . 2 . . . . . Data Miner Redirects 2 | . . . . . . . . . . . . . . . . . . 2 . . . . . Construction Impeded . | . . . . . . . . . . . . . . . . . . . . . . . . Haulers Reinforced . | . . . . . . . . . . . . . . . . . . . . . . . . Active Scanning Responses . | . . . . . . . . . . . . . . . . . . . . . . . . Cargo Convoy Interrupts 1 | . . . . . . . . . . . . . . . . . . 1 . . . . . Stealth | -11 -10 -9 -9 -9 -8 -8 -8 -8 -8 -8 -6 -6 -6 -6 -6 -6 -5 -5 -5 -5 -5 -5 -5 --------- Run | Yrd Mat Mat Min Exi Min Mat Sto Gar Rec Scr Fac Gar Fac Low Low Dat Pro Fac Gar Fac Upp Upp War Distress Signals 13 | . 2 3 . . . 1 2 . . . 1 . . . . . 1 1 . 2 . . . Communications Jammed . | . . . . . . . . . . . . . . . . . . . . . . . . Distress Signals . | . . . . . . . . . . . . . . . . . . . . . . . . Times Spotted 343 | . 12 40 16 . 10 28 28 22 2 . 12 29 5 11 3 . 16 28 . 27 3 12 39 Peak Tracking Total 20 | . 6 6 20 . 4 4 5 3 2 . 3 6 2 4 3 . 5 4 . 4 2 5 15 Tactical Retreats 24 | . . 4 2 . . 1 2 2 . . . 3 . 4 . . 2 . . . 1 2 1 Traps | -11 -10 -9 -9 -9 -8 -8 -8 -8 -8 -8 -6 -6 -6 -6 -6 -6 -5 -5 -5 -5 -5 -5 -5 ------- Run | Yrd Mat Mat Min Exi Min Mat Sto Gar Rec Scr Fac Gar Fac Low Low Dat Pro Fac Gar Fac Upp Upp War Traps Triggered 18 | . 1 1 . . . 1 . . . . 2 10 . . . . . . 2 1 . . . Indirectly . | . . . . . . . . . . . . . . . . . . . . . . . . Trap Hack Attempts . | . . . . . . . . . . . . . . . . . . . . . . . . Triggered . | . . . . . . . . . . . . . . . . . . . . . . . . Disarmed . | . . . . . . . . . . . . . . . . . . . . . . . . Reprogrammed . | . . . . . . . . . . . . . . . . . . . . . . . . Reused . | . . . . . . . . . . . . . . . . . . . . . . . . Traps Extracted . | . . . . . . . . . . . . . . . . . . . . . . . . Installed . | . . . . . . . . . . . . . . . . . . . . . . . . Triggered . | . . . . . . . . . . . . . . . . . . . . . . . . Machines | -11 -10 -9 -9 -9 -8 -8 -8 -8 -8 -8 -6 -6 -6 -6 -6 -6 -5 -5 -5 -5 -5 -5 -5 ---------- Run | Yrd Mat Mat Min Exi Min Mat Sto Gar Rec Scr Fac Gar Fac Low Low Dat Pro Fac Gar Fac Upp Upp War Machines Disabled 53 | . . 4 . . 9 . 5 13 . . 2 11 . . . . . 2 4 2 . . 1 Max in Single Turn 4 | . . 2 . . 4 . 1 1 . . 1 1 . . . . . 1 1 1 . . 1 Garrison Access 1 | . . . . . . 1 . . . . . . . . . . . . . . . . . Garrison Relay 17 | . . . . . . . . 8 . . . 5 . . . . . . 4 . . . . Phase Generator 2 | . . . . . . . . 1 . . . 1 . . . . . . . . . . . Machines Repaired . | . . . . . . . . . . . . . . . . . . . . . . . . Machines Dismantled 4 | . . . . . . . . 3 . . . 1 . . . . . . . . . . . Machines Sabotaged . | . . . . . . . . . . . . . . . . . . . . . . . . Overloaded Fab Kills . | . . . . . . . . . . . . . . . . . . . . . . . . Hacking | -11 -10 -9 -9 -9 -8 -8 -8 -8 -8 -8 -6 -6 -6 -6 -6 -6 -5 -5 -5 -5 -5 -5 -5 --------- Run | Yrd Mat Mat Min Exi Min Mat Sto Gar Rec Scr Fac Gar Fac Low Low Dat Pro Fac Gar Fac Upp Upp War Machines Accessed 100 | . 4 5 1 2 1 5 12 3 14 . 6 1 4 . . 4 . 12 1 21 2 . 2 Terminals 52 | . 3 5 1 . 1 3 9 3 6 . 3 1 1 . . . . 4 1 11 . . . Fabricators 4 | . . . . . . . . . . . 1 . . . . . . . . 3 . . . Repair Stations 10 | . . . . . . 1 1 . . . . . 3 . . . . 2 . 3 . . . Recycling Units 14 | . 1 . . . . . 1 . 8 . 1 . . . . . . 2 . 1 . . . Scanalyzers 6 | . . . . . . . . . . . . . . . . . . 3 . 3 . . . Garrison Access 4 | . . . . . . 1 1 . . . 1 . . . . . . 1 . . . . . Total Hacks 288 | . 8 21 2 2 2 19 33 5 36 . 19 3 12 . . 24 . 30 1 62 7 . 2 Successful 179 | . 3 11 1 2 1 9 23 3 27 . 9 1 7 . . 24 . 14 1 34 7 . 2 Failed 108 | . 5 10 1 . 1 10 10 2 8 . 10 2 5 . . . . 16 . 28 . . . Catastrophic 21 | . 2 . . . . . 3 1 1 . . 1 1 . . . . 4 . 8 . . . Database Lockouts 1 | . . . . . . . . . 1 . . . . . . . . . . . . . . Manual 129 | . 6 20 . 1 2 14 15 1 24 . 10 . . . . . . 9 . 26 . . 1 Terminals 148 | . 6 21 2 . 2 14 25 5 20 . 10 3 2 . . . . 8 1 29 . . . Fabricators 14 | . . . . . . . . . . . 6 . . . . . . . . 8 . . . Repair Stations 28 | . . . . . . 3 6 . . . . . 10 . . . . 2 . 7 . . . Recycling Units 29 | . 2 . . . . . 1 . 16 . 2 . . . . . . 7 . 1 . . . Scanalyzers 29 | . . . . . . . . . . . . . . . . . . 12 . 17 . . . Garrison Access 5 | . . . . . . 2 1 . . . 1 . . . . . . 1 . . . . . Terminal Hacks 67 | . . 4 1 2 1 . 7 3 5 . 2 1 2 . . 24 . 1 1 4 7 . 2 Record 15 | . . . . 1 . . . . . . . . 1 . . 7 . . . . 6 . . Part Schematic 15 | . . . . . . . 3 . 3 . . . . . . 8 . . . 1 . . . Robot Schematic 7 | . . . . . . . 1 . . . . . . . . 6 . . . . . . . Robot Analysis 4 | . . 2 . . 1 . . . . . 1 . . . . . . . . . . . . Prototype ID Bank 3 | . . . . . . . . . . . . . . . . 3 . . . . . . . Open Door 5 | . . . . . . . 2 . . . . . . . . . . . . . 1 . 2 Branch Access Points 1 | . . . . . . . . . . . . . . . . . . . . 1 . . . Emergency Access Points 3 | . . . . . . . . 1 . . . 1 . . . . . . 1 . . . . Terminal Index 5 | . . 1 . . . . 1 . 1 . . . 1 . . . . . . 1 . . . Alert Level 1 | . . . . . . . . . . . . . . . . . . . . 1 . . . Locate Traps 1 | . . . . . . . . . . . 1 . . . . . . . . . . . . Maintenance Status 1 | . . . . . . . . . . . . . . . . . . 1 . . . . . Hauler Manifests 1 | . . 1 . . . . . . . . . . . . . . . . . . . . . Zone Layout 2 | . . . 1 . . . . . 1 . . . . . . . . . . . . . . Garrison Registry 1 | . . . . . . . . 1 . . . . . . . . . . . . . . . Security Stations 1 | . . . . . . . . 1 . . . . . . . . . . . . . . . Proto ID Catalog 1 | . . . . 1 . . . . . . . . . . . . . . . . . . . Fabricator Hacks 3 | . . . . . . . . . . . 2 . . . . . . . . 1 . . . Network Status 2 | . . . . . . . . . . . 1 . . . . . . . . 1 . . . Build 1 | . . . . . . . . . . . 1 . . . . . . . . . . . . Repair Station Hacks 19 | . . . . . . 3 6 . . . . . 5 . . . . . . 5 . . . Scan Component 12 | . . . . . . 2 3 . . . . . 4 . . . . . . 3 . . . Repair 7 | . . . . . . 1 3 . . . . . 1 . . . . . . 2 . . . Recycling Unit Hacks 9 | . 1 . . . . . . . 7 . . . . . . . . 1 . . . . . Report Inventory 9 | . 1 . . . . . . . 7 . . . . . . . . 1 . . . . . Scanalyzer 18 | . . . . . . . . . . . . . . . . . . 6 . 12 . . . Insert Component 6 | . . . . . . . . . . . . . . . . . . 2 . 4 . . . Analyze 12 | . . . . . . . . . . . . . . . . . . 4 . 8 . . . Garrison Access Hacks 4 | . . . . . . 1 1 . . . 1 . . . . . . 1 . . . . . Unlock Access 3 | . . . . . . . 1 . . . 1 . . . . . . 1 . . . . . Seal Access 1 | . . . . . . 1 . . . . . . . . . . . . . . . . . Unauthorized Hacks 59 | . 2 7 . . . 5 9 . 15 . 4 . . . . . . 5 . 12 . . . Terminals 44 | . 2 7 . . . 5 8 . 7 . 4 . . . . . . 1 . 10 . . . Assimilate 3 | . . . . . . 1 1 . . . . . . . . . . . . 1 . . . Botnet 12 | . . 1 . . . 1 3 . 2 . 1 . . . . . . . . 4 . . . Operators 2 | . . 1 . . . 1 . . . . . . . . . . . . . . . . . Skim 27 | . 2 5 . . . 2 4 . 5 . 3 . . . . . . 1 . 5 . . . Fabricators 2 | . . . . . . . . . . . . . . . . . . . . 2 . . . Report 1 | . . . . . . . . . . . . . . . . . . . . 1 . . . Fabnet 1 | . . . . . . . . . . . . . . . . . . . . 1 . . . Repair Stations 1 | . . . . . . . . . . . . . . . . . . 1 . . . . . Patch 1 | . . . . . . . . . . . . . . . . . . 1 . . . . . Recycling Units 12 | . . . . . . . 1 . 8 . . . . . . . . 3 . . . . . Monitor 1 | . . . . . . . . . . . . . . . . . . 1 . . . . . Reject 1 | . . . . . . . . . . . . . . . . . . 1 . . . . . Recyclers 2 | . . . . . . . 1 . . . . . . . . . . 1 . . . . . Tunnel 8 | . . . . . . . . . 8 . . . . . . . . . . . . . . Scanalyzers . | . . . . . . . . . . . . . . . . . . . . . . . . Garrison Access . | . . . . . . . . . . . . . . . . . . . . . . . . Data Cores Recovered 1 | . . 1 . . . . . . . . . . . . . . . . . . . . . Used . | . . . . . . . . . . . . . . . . . . . . . . . . Hacking Detections 71 | . 4 5 1 . 1 4 6 3 6 . 5 1 4 . . . . 9 1 21 . . . Full Trace Events 4 | . . . . . . . . . . . . 1 1 . . . . 1 . 1 . . . Feedback Events 1 | . . . . . . . . . . . . . . . . . . 1 . . . . . Corruption 1 | . . . . . . . . . . . . . . . . . . 1 . . . . . Feedback Blocked . | . . . . . . . . . . . . . . . . . . . . . . . . Robot Schematics Acquired 7 | . . . . . . . 1 . . . . . . . . 6 . . . . . . . Robots Built . | . . . . . . . . . . . . . . . . . . . . . . . . Authchips . | . . . . . . . . . . . . . . . . . . . . . . . . Time . | . . . . . . . . . . . . . . . . . . . . . . . . Total Robot Build Rating . | . . . . . . . . . . . . . . . . . . . . . . . . Part Schematics Acquired 19 | . . . . . . . 3 . 3 . . . . . . 8 . 1 . 4 . . . Parts Built 2 | . . . . . . . . . . . 2 . . . . . . . . . . . . Authchips . | . . . . . . . . . . . . . . . . . . . . . . . . Time 128 | . . . . . . . . . . . 128 . . . . . . . . . . . . Total Part Build Rating 16 | . . . . . . . . . . . 16 . . . . . . . . . . . . Parts Repaired 7 | . . . . . . 1 3 . . . . . 1 . . . . . . 2 . . . Time 249 | . . . . . . 32 108 . . . . . 22 . . . . . . 87 . . . Parts Recycled . | . . . . . . . . . . . . . . . . . . . . . . . . Recycled Matter . | . . . . . . . . . . . . . . . . . . . . . . . . Retrieved Matter . | . . . . . . . . . . . . . . . . . . . . . . . . Retrieved Components . | . . . . . . . . . . . . . . . . . . . . . . . . Parts Scanalyzed 4 | . . . . . . . . . . . . . . . . . . 1 . 3 . . . Part Schematics Acquired 4 | . . . . . . . . . . . . . . . . . . 1 . 3 . . . Parts Damaged 1 | . . . . . . . . . . . . . . . . . . . . 1 . . . Bothacking | -11 -10 -9 -9 -9 -8 -8 -8 -8 -8 -8 -6 -6 -6 -6 -6 -6 -5 -5 -5 -5 -5 -5 -5 ------------ Run | Yrd Mat Mat Min Exi Min Mat Sto Gar Rec Scr Fac Gar Fac Low Low Dat Pro Fac Gar Fac Upp Upp War Used RIF Installer . | . . . . . . . . . . . . . . . . . . . . . . . . Robots Hacked 13 | . . . . 4 . . . . . . 1 . . . . 1 . . . . 2 . 5 Non-combat 4 | . . . . 3 . . . . . . 1 . . . . . . . . . . . . Combat 9 | . . . . 1 . . . . . . . . . . . 1 . . . . 2 . 5 Robot Hacks Applied 14 | . . . . 4 . . . . . . 2 . . . . 1 . . . . 2 . 5 parse_system 13 | . . . . 4 . . . . . . 1 . . . . 1 . . . . 2 . 5 no_distress 1 | . . . . . . . . . . . 1 . . . . . . . . . . . . Relay Couplers Released 73 | . . . . . . . . 30 . . . 25 . . . . . . 18 . . . . Machine Destruction 69 | . . . . . . . . 30 . . . 21 . . . . . . 18 . . . . Programmers 4 | . . . . . . . . . . . . 4 . . . . . . . . . . . Fabnet Peak Effective % . | . . . . . . . . . . . . . . . . . . . . . . . . Robots Rewired 9 | . . . . . . . . . . . . 1 . 2 . . . . 6 . . . . Allies Hacked . | . . . . . . . . . . . . . . . . . . . . . . . . Hacks Repelled . | . . . . . . . . . . . . . . . . . . . . . . . . Allies | -11 -10 -9 -9 -9 -8 -8 -8 -8 -8 -8 -6 -6 -6 -6 -6 -6 -5 -5 -5 -5 -5 -5 -5 -------- Run | Yrd Mat Mat Min Exi Min Mat Sto Gar Rec Scr Fac Gar Fac Low Low Dat Pro Fac Gar Fac Upp Upp War Total Allies 16 | . . . . . . 1 1 2 . . . 1 . 2 . . . . 8 1 . . . Largest Group 7 | . . . . . . 1 1 2 2 2 2 1 . 2 . . . . 7 7 . . . Highest-Rated Group 305 | . . . . . . 10 26 59 59 59 59 29 . 40 . . . . 305 305 . . . Highest-Rated Ally 51 | . . . . . . 10 26 39 39 39 39 29 . 20 . . . . 51 51 . . . Initial Warlord ECA Mod 312 | . . . . . . . . . 14 14 12 12 23 23 23 23 22 22 20 26 26 26 26 Warlord Squad Rendezvous 2 | . . . . . . . . . . . . . . . . . . 2 . . . . . Infantry 1 | . . . . . . . . . . . . . . . . . . 1 . . . . . Chimera 1 | . . . . . . . . . . . . . . . . . . 1 . . . . . Total Orders 39 | . . . . . . 2 8 5 . . 7 . 14 2 . . . . . 1 . . . STAY 8 | . . . . . . 1 4 3 . . . . . . . . . . . . . . . ROAM 4 | . . . . . . . . . . . 1 . 2 1 . . . . . . . . . FOLLOW 7 | . . . . . . 1 4 2 . . . . . . . . . . . . . . . GUARD 1 | . . . . . . . . . . . . . . . . . . . . 1 . . . EXPLORE 10 | . . . . . . . . . . . 4 . 5 1 . . . . . . . . . RETURN 9 | . . . . . . . . . . . 2 . 7 . . . . . . . . . . Ally Attacks 61 | . . . . . . . . . 6 . 8 4 . 4 . . . . . 39 . . . Total Damage 1222 | . . . . . . . . . 70 . 91 57 . 128 . . . . . 876 . . . Kills 4 | . . . . . . . . . 1 . . . . . . . . . . 3 . . . Allies Corrupted . | . . . . . . . . . . . . . . . . . . . . . . . . Allies Melted . | . . . . . . . . . . . . . . . . . . . . . . . . Intel | -11 -10 -9 -9 -9 -8 -8 -8 -8 -8 -8 -6 -6 -6 -6 -6 -6 -5 -5 -5 -5 -5 -5 -5 ------- Run | Yrd Mat Mat Min Exi Min Mat Sto Gar Rec Scr Fac Gar Fac Low Low Dat Pro Fac Gar Fac Upp Upp War Active Infowar (turns) 21292 | . . . . . . 1346 2052 1451 1287 1547 898 2531 824 724 632 152 569 1467 918 2765 491 425 1213 A.S.S. 2 | . . . . . . . . . . . . 2 . . . . . . . . . . . Machine Analysis 21292 | . . . . . . 1346 2052 1451 1287 1547 898 2531 824 724 632 152 569 1467 918 2765 491 425 1213 Jamming 2 | . . . . . . . . . . . . . . . . . . 2 . . . . . Robot Analysis Total 4 | . . 2 . . 1 . . . . . 1 . . . . . . . . . . . . Derelict Logs Recovered 8 | . . . 2 . . . . . . . . . . 2 1 . 1 . . . . 2 . Drone Launches 12 | . . . . . . . . . . . 4 . 6 2 . . . . . . . . . Drone Recoveries 10 | . . . . . . . . . . . 4 . 6 . . . . . . . . . . Exploration | -11 -10 -9 -9 -9 -8 -8 -8 -8 -8 -8 -6 -6 -6 -6 -6 -6 -5 -5 -5 -5 -5 -5 -5 ------------- Run | Yrd Mat Mat Min Exi Min Mat Sto Gar Rec Scr Fac Gar Fac Low Low Dat Pro Fac Gar Fac Upp Upp War Turns Passed 26241 | 43 344 1392 1095 913 1000 1351 2052 1451 1287 1547 898 2544 824 724 632 152 569 1495 918 2765 491 437 1317 Spaces Moved 12710 | 43 260 668 557 502 508 507 871 636 507 848 378 1229 349 349 337 82 286 682 555 1275 283 262 736 Core 8 | 6 . . . . . . . . . . . . . . . . . . . . . . 2 Treads . | . . . . . . . . . . . . . . . . . . . . . . . . Legs . | . . . . . . . . . . . . . . . . . . . . . . . . Wheels 12702 | 37 260 668 557 502 508 507 871 636 507 848 378 1229 349 349 337 82 286 682 555 1275 283 262 734 Hover . | . . . . . . . . . . . . . . . . . . . . . . . . Flight . | . . . . . . . . . . . . . . . . . . . . . . . . Fastest Speed 50 | 50 80 100 180 180 180 180 180 180 180 180 165 150 165 180 180 180 180 147 150 105 146 146 131 Average Speed 167 | 79 88 163 180 180 184 186 187 180 180 181 170 168 174 180 180 180 184 156 151 146 150 146 154 Slowest Speed 3250 | 100 100 235 235 180 185 200 200 180 180 185 195 195 180 180 180 180 195 191 168 160 165 146 3250 Overloaded Moves . | . . . . . . . . . . . . . . . . . . . . . . . . Propulsion Burnouts . | . . . . . . . . . . . . . . . . . . . . . . . . Robots Hopped . | . . . . . . . . . . . . . . . . . . . . . . . . Potential Cave-ins 7 | . . . . . . . . . . . . . 2 . . . . 5 . . . . . Cave-ins Triggered . | . . . . . . . . . . . . . . . . . . . . . . . . Exploration Rate (%) 60 | 4 45 61 98 70 100 36 93 86 98 51 22 91 16 66 52 70 53 19 92 39 44 46 91 Regions Visited 23 Branch Regions 13 Pre-discovered Areas 20 | . . 1 . 1 . . . . 11 . . . . 2 1 1 . . . 2 1 . . Known Exits Taken 12 | . . 1 . . 1 1 1 . 1 1 1 . 1 . . . . 1 . 1 1 1 . Unknown Exits Taken 8 | 1 1 . 1 1 . . . . . . . . . 1 1 1 1 . . . . . . Scrap Searched 8 | . . . 2 . . . . . . . . . . 1 2 . 2 . . . . 1 . Spaces Dug 76 | . . . . . . . 3 . . . . . 14 . . . . 23 . 33 . 3 . Terrain Destroyed 568 | . 5 5 . . 71 27 35 22 . . 5 41 14 20 4 . 21 72 . 71 17 47 91 Melee 7 | . . . . . . . 3 . . . . . 2 . . . . . . 2 . . . Projectile 195 | . . . . . . 27 8 . . . 5 12 12 20 4 . 2 38 . 49 1 5 12 AOE 366 | . 5 5 . . 71 . 24 22 . . . 29 . . . . 19 34 . 20 16 42 79 Terrain Rammed . | . . . . . . . . . . . . . . . . . . . . . . . . Walls Destroyed . | . . . . . . . . . . . . . . . . . . . . . . . . Machines Disabled . | . . . . . . . . . . . . . . . . . . . . . . . . Actions | -11 -10 -9 -9 -9 -8 -8 -8 -8 -8 -8 -6 -6 -6 -6 -6 -6 -5 -5 -5 -5 -5 -5 -5 --------- Run | Yrd Mat Mat Min Exi Min Mat Sto Gar Rec Scr Fac Gar Fac Low Low Dat Pro Fac Gar Fac Upp Upp War Total 16180 | 48 335 829 604 510 540 785 1156 774 866 855 581 1465 522 397 348 86 308 991 618 2063 333 289 877 Wait 2014 | . 27 50 19 . 4 180 161 11 348 . 150 10 137 11 . . . 177 1 642 29 3 54 Move 12688 | 42 260 667 556 501 507 506 871 635 506 847 378 1225 348 348 336 81 285 682 554 1274 282 261 736 Hop . | . . . . . . . . . . . . . . . . . . . . . . . . Pick Up 172 | . 10 21 4 3 2 12 14 8 2 3 6 10 . 3 1 . 1 13 7 36 . . 16 Fast Attach 76 | 6 3 8 . . . 4 7 4 . 1 4 8 2 2 . 1 2 10 1 4 . . 9 Attach 86 | . 3 4 4 . 4 4 4 2 . . 6 9 1 2 . . 2 9 4 6 6 3 13 Detach 26 | . 1 3 . . . 1 2 1 . . . 5 . . . . 2 4 . . 3 3 1 Swap 106 | . 2 5 1 1 4 10 15 10 1 . 6 14 8 1 . . 1 8 10 6 . 2 1 Drop 135 | . 1 9 . 1 1 12 18 11 2 4 5 15 1 1 1 1 1 14 8 11 . 1 17 Fire 743 | . 28 62 20 . 18 56 55 66 7 . 23 103 22 29 10 3 14 69 19 80 13 16 30 Melee 68 | . . . . 4 . . 9 . . . 3 41 2 . . . . 5 1 3 . . . Ram 2 | . . . . . . . . . . . . . 1 . . . . . . 1 . . . Kick . | . . . . . . . . . . . . . . . . . . . . . . . . Crush . | . . . . . . . . . . . . . . . . . . . . . . . . Escape Stasis 16 | . . . . . . . . . . . . 16 . . . . . . . . . . . Rewire 13 | . . . . . . . . . . . . . . . . . . . 13 . . . . Trap . | . . . . . . . . . . . . . . . . . . . . . . . . Miscellaneous 35 | . . . . . . . . 26 . . . 9 . . . . . . . . . . . Route ------- -11/Scrapyard -10/Materials -9/Materials (discovered 5 exits: *Mat x3 / *Min x2) -9/Mines (discovered 4 exits: *Mat x2 / *Exi / [*Zio]) -9/Exiles -8/Mines (discovered 2 exits: *Mat x2) -8/Materials (discovered 3 exits: [*Fac x2] / *Sto) -8/Storage (discovered 2 exits: [*Fac] / Gar) -8/Garrison (discovered 3 exits: *Rec x3) -8/Recycling (discovered 2 exits: *Fac / *Scr) -8/Scraptown (discovered 2 exits: *Fac x2) -6/Factory (discovered 3 exits: *Low x2 / Gar) -6/Garrison (discovered 3 exits: *Fac x3) -6/Factory -6/Lower Caves -6/Lower Caves (discovered 2 exits: *Fac / *Dat) -6/Data Miner -5/Proximity Caves -5/Factory (discovered 2 exits: *Fac / Gar) -5/Garrison (discovered 3 exits: *Fac x3) -5/Factory (discovered 4 exits: *Fac x2 / *Upp x2) -5/Upper Caves -5/Upper Caves (discovered 2 exits: *Fac / *War) -5/Warlord History --------- Turn | Location | Event 6 | -11/Scrapyard | Discovered new exit (range 15) 44 | -11/Scrapyard | Entered Materials 217 | -10/Materials | Core integrity fell below 50% 239 | -10/Materials | Lost 4 parts (2n2w) 259 | -10/Materials | Destroyed 7 combat bots 333 | -10/Materials | Build established: Mutant 372 | -10/Materials | Discovered new exit (range 13) 388 | -10/Materials | Entered another Materials area 388 | -9/Materials | Evolved 2 slots: Utility x1, Weapon x1 799 | -9/Materials | Build established: Hauler-Tank 863 | -9/Materials | Discovered new exit (range 4) 1320 | -9/Materials | Build established: Hauler-Gunner 1436 | -9/Materials | Identified exit to Materials 1520 | -9/Materials | Learned Storage trap positions 1547 | -9/Materials | Identified exit to Mines 1566 | -9/Materials | Learned location of 1 exit from Recycling 1569 | -9/Materials | Discovered exit to Mines (range 13) 1573 | -9/Materials | Learned location of Mines (-9) 1591 | -9/Materials | Learned Materials emergency access door positions 1750 | -9/Materials | Build established: Hauler-Tank 1780 | -9/Materials | Entered Mines 1821 | -9/Mines | Assembled infested the area 1880 | -9/Mines | Lost 3 parts (1n2w) 1887 | -9/Mines | A Derelict revealed a hidden shortcut to a safe place 2038 | -9/Mines | Deemed a non-threat by the Exiles lab entrance 2038 | -9/Mines | Discovered new exit (range 5) 2142 | -9/Mines | Build established: Hauler-Gunner 2268 | -9/Mines | Received a Rocket Launcher from a helpful Derelict 2723 | -9/Mines | Learned Materials stockpile data 2730 | -9/Mines | A weapon hastily lodged in a ceiling crevice suddenly fell to the ground 2875 | -9/Mines | Entered Exiles 2920 | -9/Exiles | Met 8R-AWN 2954 | -9/Exiles | Met EX-HEX 3024 | -9/Exiles | Met EX-DEC 3072 | -9/Exiles | Learned location of Zion (-7) 3108 | -9/Exiles | Met EX-BIN 3224 | -9/Exiles | Build established: Hauler-Mutant 3427 | -9/Exiles | Discovered new exit (range 10) 3565 | -9/Exiles | Aligned with FarCom system 3567 | -9/Exiles | Given EX-Vault access code 3609 | -9/Exiles | Opened EX-Vault 3623 | -9/Exiles | Found Chronowheel 3659 | -9/Exiles | Warned to stay clear of 0b10 Research branches 3788 | -9/Exiles | Left Exiles lab with Chronowheel 3788 | -9/Exiles | Entered Mines 4033 | -8/Mines | Discovered exit to Materials (range 15) 4081 | -8/Mines | Build established: Hauler-Skirmisher 4539 | -8/Mines | Found a Scrap Suit stashed away for nefarious purposes 4674 | -8/Mines | Core integrity fell below 50% 4681 | -8/Mines | Discovered exit to Materials (range 15) 4788 | -8/Mines | Entered Materials 4788 | -8/Materials | Evolved 2 slots: Utility x2 4789 | -8/Materials | Identified exit to Storage 4839 | -8/Materials | Repaired Med. Armor Plating 5604 | -8/Materials | Discovered new exit (range 12) 5950 | -8/Materials | Discovered new exit (range 16) 6139 | -8/Materials | Entered Storage 6140 | -8/Storage | Loaded intel: 16 trap records 6207 | -8/Storage | Garrison activated, responded to threat 7002 | -8/Storage | Destroyed 7 combat bots 7195 | -8/Storage | Discovered new exit (range 15) 7616 | -8/Storage | Found Prototype Launcher 7616 | -8/Storage | Identified Gui. Missile Launcher 7777 | -8/Storage | Repaired Hrd. Medium Armor Plating 7822 | -8/Storage | Repaired Gauss Cannon 7871 | -8/Storage | Repaired Lgt. Armor Plating 8191 | -8/Storage | Identified exit to Garrison 8191 | -8/Storage | Entered Garrison 8191 | -8/Garrison | Accompanied by 1 ally 8329 | -8/Garrison | Triggered checkpoint 8335 | -8/Garrison | Core integrity fell below 50% 8431 | -8/Garrison | Discovered new exit (range 43) 8431 | -8/Garrison | Discovered new exit (range 75) 8431 | -8/Garrison | Discovered new exit (range 59) 8446 | -8/Garrison | Garrison Relay disabled 8583 | -8/Garrison | Triggered checkpoint 8701 | -8/Garrison | Garrison Relay disabled 8782 | -8/Garrison | Phase Generator disabled 8847 | -8/Garrison | Triggered checkpoint 8871 | -8/Garrison | Triggered checkpoint 9047 | -8/Garrison | Garrison Relay disabled 9080 | -8/Garrison | Learned Recycling security intel 9128 | -8/Garrison | Garrison Relay disabled 9130 | -8/Garrison | Garrison Relay disabled 9132 | -8/Garrison | Garrison Relay disabled 9136 | -8/Garrison | Garrison Relay disabled 9219 | -8/Garrison | Triggered checkpoint 9456 | -8/Garrison | Rescued a captive Derelict 9457 | -8/Garrison | Rescued a captive Derelict 9588 | -8/Garrison | Garrison Relay disabled 9642 | -8/Garrison | Entered Recycling 9642 | -8/Recycling | Accompanied by 2 allies 9643 | -8/Recycling | Identified exit to Scraptown 10276 | -8/Recycling | Discovered new exit (range 15) 10535 | -8/Recycling | Learned Storage stockpile data 10541 | -8/Recycling | Scanned before Scraplab entrance 10569 | -8/Recycling | Entered Scraplab 10601 | -8/Recycling | Learned Factory garrison access intel 10768 | -8/Recycling | Learned Factory stockpile data 10911 | -8/Recycling | Learned Factory repair station intel 10929 | -8/Recycling | Entered Scraptown 10929 | -8/Scraptown | Accompanied by 2 allies 10930 | -8/Scraptown | Identified exit to Factory 11216 | -8/Scraptown | Build established: Hauler-Tank 11257 | -8/Scraptown | Heard Great Nut preacher, LISTEN AND RECITE! 11302 | -8/Scraptown | Visited Fellowship of the Rings 11327 | -8/Scraptown | Visited Red Mages 11340 | -8/Scraptown | Visited Cyclists 11388 | -8/Scraptown | Visited Cave Peace 11457 | -8/Scraptown | Visited TADAMA 11495 | -8/Scraptown | Visited Symbiants 11752 | -8/Scraptown | Visited Assassins FH 12476 | -8/Scraptown | Entered Factory 12476 | -6/Factory | Accompanied by 2 allies 12476 | -6/Factory | Evolved 4 slots: Power x1, Propulsion x1, Utility x2 12477 | -6/Factory | Identified exit to Lower Caves 12479 | -6/Factory | Loaded intel: 6 repair station locations 12480 | -6/Factory | Loaded intel: 4 garrison access locations 12716 | -6/Factory | Lost 3 parts (1n1u1w) 12995 | -6/Factory | Fabricated Linear Accelerator? 13374 | -6/Factory | Identified exit to Garrison 13374 | -6/Factory | Entered Garrison 13590 | -6/Garrison | Found Prototype Device 13590 | -6/Garrison | Identified Active Sensor Suite 13644 | -6/Garrison | H-XX Assembler disabled 13692 | -6/Garrison | Build established: Hauler-Skirmisher 13978 | -6/Garrison | Triggered checkpoint 13982 | -6/Garrison | Triggered checkpoint 14206 | -6/Garrison | Discovered new exit (range 8) 14216 | -6/Garrison | Triggered checkpoint 14306 | -6/Garrison | Garrison Relay disabled 14366 | -6/Garrison | Attempted to access garrison exit controls, blocked by remote lockdown 14602 | -6/Garrison | Triggered checkpoint 14608 | -6/Garrison | Garrison Relay disabled 14721 | -6/Garrison | Triggered checkpoint 14759 | -6/Garrison | Destroyed 8 combat bots 14849 | -6/Garrison | Garrison Relay disabled 14970 | -6/Garrison | Discovered new exit (range 9) 15043 | -6/Garrison | Garrison Relay disabled 15199 | -6/Garrison | Lost 3 parts (1n1u1w) 15445 | -6/Garrison | Phase Generator disabled 15479 | -6/Garrison | Build established: Hauler-Mutant 15761 | -6/Garrison | Garrison Relay disabled 15796 | -6/Garrison | Discovered new exit (range 8) 15808 | -6/Garrison | Attempted to access garrison exit controls, blocked by remote lockdown 15918 | -6/Garrison | Entered Factory 16276 | -6/Factory | Repaired Hrd. Heavy Armor Plating 16565 | -6/Factory | Build established: Hauler-Skirmisher 16742 | -6/Factory | Entered Lower Caves 16827 | -6/Lower Caves | Attacked by a faux Warlord 16862 | -6/Lower Caves | Met a Warlord Commander 16863 | -6/Lower Caves | Learned location of Warlord (-5) 16864 | -6/Lower Caves | Warlord Commander delivered Encrypted Comm Array 16868 | -6/Lower Caves | Found Encrypted Comm Array 17117 | -6/Lower Caves | Build established: Hauler-Tank 17227 | -6/Lower Caves | Encountered a Warlord checkpoint 17448 | -6/Lower Caves | Discovered new exit (range 9) 17451 | -6/Lower Caves | Learned Factory garrison access intel 17466 | -6/Lower Caves | Entered another Lower Caves area 17467 | -6/Lower Caves | Encountered a Warlord checkpoint 17529 | -6/Lower Caves | Discovered new exit (range 13) 18080 | -6/Lower Caves | Discovered new exit (range 12) 18098 | -6/Lower Caves | Entered Data Miner 18098 | -6/Data Miner | Discovered new exit (range 6) 18133 | -6/Data Miner | Met Data Miner 18177 | -6/Data Miner | Learned location of Section 7 (-2) 18177 | -6/Data Miner | Acquired the access code to Warlord's prototype stash 18207 | -6/Data Miner | Received God Mode back door access code from Data Miner 18250 | -6/Data Miner | Entered Proximity Caves 18345 | -5/Proximity Caves | Spotted B-75 Beast 18394 | -5/Proximity Caves | Spotter reported a threat 18395 | -5/Proximity Caves | Spotter reported a threat 18406 | -5/Proximity Caves | Build established: Hauler-Mutant 18447 | -5/Proximity Caves | Spotter reported a threat 18448 | -5/Proximity Caves | Spotter reported a threat 18471 | -5/Proximity Caves | Learned Factory trap positions 18733 | -5/Proximity Caves | Spotter reported a threat 18780 | -5/Proximity Caves | Discovered new exit (range 11) 18818 | -5/Proximity Caves | System corruption reached 10% 18819 | -5/Proximity Caves | Entered Factory 18819 | -5/Factory | Evolved 2 slots: Propulsion x1, Utility x1 18820 | -5/Factory | Loaded intel: 101 trap records 18821 | -5/Factory | Loaded intel: 3 garrison access locations 19119 | -5/Factory | Search patrols dispatched 19128 | -5/Factory | Build established: Scavenger-Tank 19347 | -5/Factory | Incoming investigation squad redirected 19417 | -5/Factory | Joined by Warlord Chimera squad 19419 | -5/Factory | Search patrols dispatched 19472 | -5/Factory | Discovered new exit (range 13) 19643 | -5/Factory | Joined by Warlord Infantry squad 19683 | -5/Factory | Cargo convoy interrupted 19704 | -5/Factory | Incoming assault squad redirected 19910 | -5/Factory | Build established: Hauler-Skirmisher 19982 | -5/Factory | Found Prototype Launcher 19995 | -5/Factory | Lost 3 parts (1p1n1u) 20000 | -5/Factory | Identified Com. Tesla Bomb Launcher 20213 | -5/Factory | Build established: Hauler-Tank 20314 | -5/Factory | Identified exit to Garrison 20314 | -5/Factory | Entered Garrison 20314 | -5/Garrison | Discovered recently destroyed garrison 20324 | -5/Garrison | Rescued a captive Derelict 20329 | -5/Garrison | Rescued a captive Derelict 20387 | -5/Garrison | Garrison Relay disabled 20601 | -5/Garrison | Garrison Relay disabled 20634 | -5/Garrison | Discovered new exit (range 5) 20898 | -5/Garrison | Garrison Relay disabled 21003 | -5/Garrison | Discovered new exit (range 10) 21149 | -5/Garrison | Garrison Relay disabled 21203 | -5/Garrison | Discovered new exit (range 3) 21232 | -5/Garrison | Entered Factory 21232 | -5/Factory | Accompanied by 7 allies 21819 | -5/Factory | Lost 5 allies 21857 | -5/Factory | Identified exit to Upper Caves 22031 | -5/Factory | Repaired Broken Arm. Huge Wheel? 22102 | -5/Factory | Repaired Cargo Storage Unit 22776 | -5/Factory | Discovered new exit (range 9) 23381 | -5/Factory | Build established: Hauler-Skirmisher 23446 | -5/Factory | Learned 8 Research zone layouts 23521 | -5/Factory | Learned location of 2 exits from Upper Caves 23586 | -5/Factory | Identified exit to Factory 23643 | -5/Factory | Learned Extension security intel 23727 | -5/Factory | Build established: Hauler-Tank 23729 | -5/Factory | Learned location of 1 exit from Proximity Caves 23757 | -5/Factory | Learned location of Upper Caves (-5) 23839 | -5/Factory | Learned 12 Research zone layouts 23893 | -5/Factory | Learned 4 Factory zone layouts 23955 | -5/Factory | Learned Extension trap positions 23997 | -5/Factory | Entered Upper Caves 23998 | -5/Upper Caves | Identified exit to Upper Caves 24291 | -5/Upper Caves | Lost 3 parts (1n1u1w) 24327 | -5/Upper Caves | Entered an active Warlord outpost 24488 | -5/Upper Caves | Entered another Upper Caves area 24489 | -5/Upper Caves | Identified exit to Warlord 24507 | -5/Upper Caves | Discovered exit to Factory (range 9) 24646 | -5/Upper Caves | Learned Factory trap positions 24696 | -5/Upper Caves | Encountered a Warlord checkpoint 24727 | -5/Upper Caves | Spotted B-75 Beast 24736 | -5/Upper Caves | Learned Factory emergency access door positions 24889 | -5/Upper Caves | Attracted the attention of an 0b10 checkpoint 24925 | -5/Upper Caves | Entered Warlord 25171 | -5/Warlord | Found Prototype Special Weapon 25173 | -5/Warlord | Found Prototype Special Weapon 25176 | -5/Warlord | Found Prototype Special Weapon 25178 | -5/Warlord | Found Prototype Special Weapon 25181 | -5/Warlord | Found Prototype Special Weapon 25183 | -5/Warlord | Found Prototype Special Weapon 25288 | -5/Warlord | Opened Warlord's prototype stash 25304 | -5/Warlord | Found Prototype Reactor 25304 | -5/Warlord | Identified Vortex Chain Reactor 25312 | -5/Warlord | Found Exp. Targeting Computer 25320 | -5/Warlord | Found Prototype Processor 25374 | -5/Warlord | Found Prototype Device 25607 | -5/Warlord | Warlord's base attacked by MAIN.C 25621 | -5/Warlord | Found Prototype Piercing Weapon 25627 | -5/Warlord | Found Prototype Energy Gun 25630 | -5/Warlord | Found Prototype Energy Gun 25745 | -5/Warlord | Met Warlord 25957 | -5/Warlord | Warlord forces counterattacked 25982 | -5/Warlord | Opened side exit 26088 | -5/Warlord | Spotted Executioner 26127 | -5/Warlord | Lost 19 allies 26148 | -5/Warlord | Destroyed Executioner 26151 | -5/Warlord | Core integrity fell below 50% 26160 | -5/Warlord | Identified RU-N14's Throwing Claymores v3 (x2) 26167 | -5/Warlord | Spotted Executioner 26176 | -5/Warlord | Destroyed Executioner 26197 | -5/Warlord | Destroyed 17 combat bots 26199 | -5/Warlord | Lost 13 parts (1p2n8u2w) 26221 | -5/Warlord | Spotted B-86 Titan 26229 | -5/Warlord | Spotted Executioner 26229 | -5/Warlord | Spotted B-75 Beast 26230 | -5/Warlord | Core integrity fell below 20% 26230 | -5/Warlord | Spotted Executioner 26242 | -5/Warlord | Destroyed by Executioner with Helical Railgun Last Messages --------------- arriving soon. 26199_ The unstable cave ceiling collapses. 26205_ System corrupted: Component data lost. 26207_ ANNOUNCEMENT: Detected 1 Behemoth squad, 1 Programmer squad, 2 Grunt squads, with prototype support. 26210_ The unstable cave ceiling collapses. 26211_ Acquired 4 matter. 26212_ The unstable cave ceiling collapses. 26222_ 2P-7OL(g) destroyed. 26225_ The unstable cave ceiling collapses. 26231_ Lgt. Quantum Reactor destroyed. 26231_ Penetrated by Slug. 26232_ The unstable cave ceiling collapses. 26239_ Penetrated by Slug. 26239_ RU-N14's Throwing Claymores v3 destroyed. 26240_ Penetrated by Slug. 26241_ System corrupted: Energy discharge (-122). 26241_ The unstable cave ceiling collapses. 26241_ P-70 Sage resets P-70 Sage, system corruption cleaned. 26242_ Penetrated by Slug. Map ----- +----------------------------------------------------+ | ?????????????????????????????? | | ?????????????????????????????? | | ?????????????????????????????? | | ?????????????????????????????? | | ?????????????????????????????? | | ?????????????????????????????? | | ?????????????????????????????? | | ?????????????????????????????? | | ?????????????????????????????? | | ?????????????????????????????? | | ?????????????????????????????? | | ?????????????????#???=???????? | | ???????????????### ?? ???#?? | | ?????????????? % ??#"?? | | ????????????? ### # ? #?? | | ????????????# # ? ?? | | ?????????????## BB # ?? | | ?????????????# BB E #?? | | ?????????????##; =BB # "?? | | ?????????????? BBp # ##? | | #???????????#??#; p E #? | | ############? ## ;; #?? | | """""""""""#?# ## ;; #??? | | """""""""""#?##"#?#; !!!p###?? | | == ## "## == ![=%#?? | | = % ! ;;%[@%##? | | *= ;;#!//==#? | | #### "# =]!]%#? | | """""""""""#??## # %/ ; ? | | """""""""""#???# # ## ; | | ############???# ! ^ ;## | | #?????????????## # % ;#? | | ?????????????## # ;#? | | ?????????????# %%;;#? | | ????????????#; "# # ; #? | | ????????????# " ## ;; ? | | ????????????# " ; %? | | ????????????# "# #### | | ????????????#^ ##### ##??? | | ???????????## ##??### #??? | | ??????????## ##??## #??? | | ??????????# ##?# #??? | | ??????##### ## ### ^ #??? | | ?????## # #### ## #??? | | ?????# #?## ## #??? | | ?????# ##?# ## ##??? | | ?????# ## #?## #???? | | ?????###### #??### ##???? | | ?????????# ##????######????? | | ?????????# ##???????????????? | +----------------------------------------------------+ Best States ------------- Heat Dissipation 75 Energy Generation 55 Energy Capacity 700 Matter Stores 300 Matter Capacity 300 Sight Range 16 Terrain Scan Density 10 Armor Coverage 825 Resistance: KI 30 Resistance: EM 15 Core Shielding 20 Propulsion Shielding 33 Evasion (%) 44 Targeting Accuracy 12 Core Analysis 6 Recoil Reduction 6 Kinecelleration 40 Item Schematics ----------------- Arm. Treads | -8/Storage | Hacked Phase Shifter | -8/Storage | Hacked Adv. Terrain Scanner | -8/Storage | Hacked Gauss Rifle | -8/Recycling | Hacked Lrg. Storage Unit | -8/Recycling | Hacked Chainsword | -8/Recycling | Hacked Combat Drone Bay | -6/Data Miner | Free Lgt. Regenerative Plating | -6/Data Miner | Free Enh. Flexi-carbon Leg | -6/Data Miner | Free Prc. Energy Filter | -6/Data Miner | Free Cld. Plasma Rifle | -6/Data Miner | Free Adv. Medium Treads | -6/Data Miner | Free Adv. Focal Shield | -6/Data Miner | Free Hvy. Gauss Cannon | -6/Data Miner | Free Linear Accelerator | -5/Factory | Scanalyzed Arm. Huge Wheel | -5/Factory | Scanalyzed Lyr. Heavy Armor Plating | -5/Factory | Hacked Adv. Hacking Suite | -5/Factory | Scanalyzed Rnf. Quantum Reactor | -5/Factory | Scanalyzed Robot Schematics ------------------ Y-45 Defender | -8/Storage | Hacked G-50 Soldier | -6/Data Miner | Free M-22 Extractor | -6/Data Miner | Free X-62 Marksman | -6/Data Miner | Free A-15 Conveyor | -6/Data Miner | Free L-61 Swordsman | -6/Data Miner | Free X-77 Beamer | -6/Data Miner | Free Fabricated ------------ Linear Accelerator | x2 | -6/Factory | Preloaded Repaired ---------- Med. Armor Plating | 22% | -8/Materials Hrd. Medium Armor Plating | 1% | -8/Storage Gauss Cannon | 25% | -8/Storage Lgt. Armor Plating | 53% | -8/Storage Hrd. Heavy Armor Plating | 50% | -6/Factory Arm. Huge Wheel | 82% | -5/Factory | Broken Cargo Storage Unit | 36% | -5/Factory Alien Tech Used ----------------- None Achievements -------------- None Challenges ------------ None Game ------ Seed PortableThunderCompanion Manual? 0 Play Time 05:09:13 Cumulative 310.0 hours Start 2025.05.24 @ 21:27:18 End 2025.05.25 @ 10:48:17 Sessions 3 Manual Loads 0 Difficulty Rogue Special Mode None Game No. 150 Rogue 107 Adventurer 43 Explorer 0 Win Type - Total 6 Types 4/0/1/0/0/0/0/1/0/0 Lore% 83 Gallery% 72 Achievement% 65 Wizard Run 0 Options --------- Layout 0 ASCII 0 Keyboard 0 Movement Numpad Keybinds 0 Fullscreen 1 Font 24/Smallcaps Map View 76x50 Zoom Use 0% Tactical HUD 1 Map Filters NONE Filters NONE Steam 1 RUN: 971da447-0f20-4348-91b9-d65767fc9cc5